fUSD/lending_fUSD_20260201
["ID","MTS","AMOUNT","RATE_DAILY","PERIOD"]
[404231185,1769979071317,151.0,0.00055499,120]
[404231186,1769979071360,1328.27659266,0.00055499,120]
[404231187,1769979071400,500.0,0.00055499,120]
[404231188,1769979071650,151.0,0.00055499,120]
[404231189,1769979071696,500.0,0.00055499,120]
[404231190,1769979071754,500.0,0.00055499,120]
[404231191,1769979071797,194.72792766,0.00055499,120]
[404231192,1769979071842,151.0,0.00055499,120]
[404231193,1769979071884,1377.42282659,0.00055499,120]
[404231194,1769979071926,500.0,0.00055499,120]
[404231195,1769979071977,500.0,0.00055499,120]
[404231196,1769979072020,151.0,0.00055499,120]
[404231197,1769979072117,201.93286099,0.00055499,120]
[404231198,1769979072162,500.0,0.00055499,120]
[404231199,1769979072206,1428.38747117,0.00055499,120]
[404231200,1769979072249,151.0,0.00055499,120]
[404231201,1769979072293,500.0,0.00055499,120]
[404231202,1769979072359,500.0,0.00055499,120]
[404231203,1769979072407,151.0,0.00055499,120]
[404231204,1769979072456,209.40437684,0.00055499,120]
[404231205,1769979072502,500.0,0.00055499,120]
[404231206,1769979072546,1481.23780761,0.00055499,120]
[404231207,1769979072589,151.0,0.00055499,120]
[404231208,1769979072632,500.0,0.00055499,120]
[404231209,1769979072678,500.0,0.00055499,120]
[404231210,1769979072719,151.0,0.00055499,120]
[404231211,1769979072760,217.15233878,0.00055499,120]
[404231212,1769979072805,151.0,0.00055499,120]
[404231213,1769979072848,1536.04360649,0.00055499,120]
[404231214,1769979072890,500.0,0.00055499,120]
[404231215,1769979072932,500.0,0.00055499,120]
[404231216,1769979072975,500.0,0.00055499,120]
[404231217,1769979073022,151.0,0.00055499,120]
[404231218,1769979073063,225.18697532,0.00055499,120]
[404231219,1769979073117,151.0,0.00055499,120]
[404231220,1769979073160,500.0,0.00055499,120]
[404231221,1769979073203,500.0,0.00055499,120]
[404231222,1769979073248,500.0,0.00055499,120]
[404231223,1769979073294,151.0,0.00055499,120]
[404231224,1769979073340,233.51889341,0.00055499,120]
[404231225,1769979073389,151.0,0.00055499,120]
[404231226,1769979073432,241.11788993,0.00055499,120]
[404231227,1769979073477,500.0,0.00055499,120]
[404231228,1769979073523,500.0,0.00055499,120]
[404231229,1769979073571,151.0,0.00055499,120]
[404231230,1769979073619,242.15909246,0.00055499,120]
[404231231,1769979073674,151.0,0.00055499,120]
[404231232,1769979073740,500.0,0.00055499,120]
[404231233,1769979073782,500.0,0.00055499,120]
[404231234,1769979073829,151.0,0.00055499,120]
[404231235,1769979073884,251.11897888,0.00055499,120]
[404231236,1769979073953,151.0,0.00055499,120]
[404231237,1769979073998,500.0,0.00055499,120]
[404231238,1769979074042,500.0,0.00055499,120]
[404231239,1769979074096,151.0,0.00055499,120]
[404231240,1769979074138,260.4103811,0.00055499,120]
[404231241,1769979074180,151.0,0.00055499,120]
[404231242,1769979074227,500.0,0.00055499,120]
[404231243,1769979074273,500.0,0.00055499,120]
[404231244,1769979074325,250.0,0.00055499,120]
[404231245,1769979074371,151.0,0.00055499,120]
[404231246,1769979074416,270.0455652,0.00055499,120]
[404231247,1769979074456,151.0,0.00055499,120]
[404231248,1769979074528,1500.0,0.000555,120]
[404231249,1769979074577,500.0,0.00055499,120]
[404231250,1769979075300,-256.0,0.00012896,2]
[404231251,1769979075310,-195.0,0.00014185,2]
[404231252,1769979075319,-291.60787913,0.00014185,2]
[404231253,1769979075328,-282.40866864,0.00014373,2]
[404231254,1769979075337,-71.4507676,0.0001525,2]
[404231255,1769979075347,-180.8592324,0.0001525,2]
[404231256,1769979075356,-500.0,0.00015395,2]
[404231257,1769979075366,-150.0,0.00015485,2]
[404231258,1769979075374,-150.00956649,0.00015485,2]
[404231259,1769979075383,-1200.0,0.00015485,2]
[404231260,1769979075392,-337.91627015,0.00015486,2]
[404231261,1769979075403,-2260.62805522,0.00015486,2]
[404231262,1769979075414,-450.0,0.00015486,2]
[404231263,1769979075424,-2482.54871645,0.00015486,2]
[404231264,1769979075435,-8056.28695818,0.00015486,2]
[404231265,1769979075444,-150.0,0.00015707,2]
[404231266,1769979075453,-200.0,0.00015725,2]
[404231267,1769979075462,-151.0,0.00015796,2]
[404231268,1769979075473,-151.0,0.00015796,2]
[404231269,1769979075482,-151.0,0.00015796,2]
[404231270,1769979075493,-151.0,0.00015798,2]
[404231271,1769979075503,-285.95,0.00015798,2]
[404231272,1769979075514,-151.0,0.00015816,2]
[404231273,1769979075524,-222.92,0.00015903,2]
[404231274,1769979075533,-151.0,0.0001593,2]
[404231275,1769979075542,-166.64,0.00015952,2]
[404231276,1769979075551,-2704.78413521,0.00016115,2]
[404231277,1769979075564,-1422.63899574,0.00016115,2]
[404231278,1769979075575,-739.83242181,0.00016115,2]
[404231279,1769979075597,-426.83436047,0.00016115,2]
[404231280,1769979075608,-578.59685262,0.00016115,2]
[404231281,1769979075617,-248.55026109,0.00016115,2]
[404231282,1769979075626,-72.56064944,0.00016115,2]
[404231283,1769979075636,-782.76857672,0.00016115,2]
[404231284,1769979075647,-1703.04317917,0.00016115,2]
[404231285,1769979075657,-459.25366329,0.00016115,2]
[404231286,1769979075668,-460.97194478,0.00016115,2]
[404231287,1769979075875,-478.17926681,0.00016115,2]
[404231288,1769979075885,-299.99,0.00016116,4]
[404231289,1769979075894,-150.99,0.00016116,2]
[404231290,1769979075903,-1311.71,0.00016116,2]
[404231291,1769979075912,-151.0,0.00016171,2]
[404231292,1769979075922,-151.0,0.00016171,2]
[404231293,1769979075931,-151.0,0.00016171,2]
[404231294,1769979075941,-500.0,0.00016173,2]
[404231295,1769979075950,-189.96211611,0.00016173,2]
[404231296,1769979075959,-167.45602324,0.00016173,2]
[404231297,1769979075968,-630.2400127,0.00016173,2]
[404231298,1769979075978,-150.0,0.00016173,2]
[404231299,1769979075987,-1353.60678292,0.00016174,2]
[404231300,1769979075997,-20345.24128045,0.00016174,2]
[404231301,1769979076062,-7692.8,0.00016174,2]
[404231302,1769979076075,-2870608.35193663,0.00016174,2]
[404231303,1769979076085,-814.046,0.00016215,2]
[404231304,1769979076094,-500.89443715,0.00016215,2]
[404231305,1769979076103,-500.13624415,0.00016215,2]
[404231306,1769979076113,-175.77488165,0.00016215,2]
[404231307,1769979076122,-500.0,0.00016215,2]
[404231308,1769979076131,-208.40720819,0.00016215,2]
[404231309,1769979076140,-500.91864191,0.00016215,2]
[404231310,1769979076149,-500.45016231,0.00016215,2]
[404231311,1769979076159,-500.99163664,0.00016215,2]
[404231312,1769979076171,-500.73429157,0.00016215,2]
[404231313,1769979076180,-500.0,0.00016215,2]
[404231314,1769979076190,-500.0,0.00016215,2]
[404231315,1769979076199,-500.0,0.00016215,2]
[404231316,1769979076209,-500.8695205,0.00016215,2]
[404231317,1769979076219,-161.52754955,0.00016215,2]
[404231318,1769979076228,-161.96888035,0.00016215,2]
[404231319,1769979076238,-500.44195081,0.00016215,2]
[404231320,1769979076247,-500.8043205,0.00016215,2]
[404231321,1769979076257,-500.72482748,0.00016215,2]
[404231322,1769979076266,-500.51837195,0.00016215,2]
[404231323,1769979076275,-500.69372146,0.00016215,2]
[404231324,1769979076284,-500.77325853,0.00016215,2]
[404231325,1769979076293,-432.17920076,0.00016215,2]
[404231326,1769979076302,-500.82999627,0.00016215,2]
[404231327,1769979076311,-500.0,0.00016215,2]
[404231328,1769979076320,-500.0,0.00016215,2]
[404231329,1769979076329,-500.0,0.00016215,2]
[404231330,1769979076337,-500.52349132,0.00016215,2]
[404231331,1769979076346,-500.0,0.00016215,2]
[404231332,1769979076355,-500.28379137,0.00016215,2]
[404231333,1769979076364,-501.26182196,0.00016215,2]
[404231334,1769979076373,-160.18403092,0.00016215,2]
[404231335,1769979076383,-500.7971561,0.00016215,2]
[404231336,1769979076392,-210.3644324,0.00016215,2]
[404231337,1769979076401,-500.9734639,0.00016215,2]
[404231338,1769979076410,-392.58436043,0.00016215,2]
[404231339,1769979076419,-500.0,0.00016215,2]
[404231340,1769979076428,-500.44403009,0.00016215,2]
[404231341,1769979076438,-333.63674101,0.00016215,2]
[404231342,1769979076448,-160.07078646,0.00016215,2]
[404231343,1769979076458,-500.0,0.00016215,2]
[404231344,1769979076467,-500.58361671,0.00016215,2]
[404231345,1769979076480,-169.74769321,0.00016215,2]
[404231346,1769979076490,-500.0,0.00016215,2]
[404231347,1769979076500,-500.0,0.00016215,2]
[404231348,1769979076511,-501.55130892,0.00016215,2]
[404231349,1769979076519,-164.79829562,0.00016215,2]
[404231350,1769979076528,-500.0,0.00016215,2]
[404231351,1769979076540,-500.0,0.00016215,2]
[404231352,1769979076549,-257.05951855,0.00016215,2]
[404231353,1769979076559,-500.23746588,0.00016215,2]
[404231354,1769979076569,-500.22501364,0.00016215,2]
[404231355,1769979076581,-500.67654953,0.00016215,2]
[404231356,1769979076591,-162.70376611,0.00016215,2]
[404231357,1769979076603,-284.47980203,0.00016215,2]
[404231358,1769979076613,-500.54404873,0.00016215,2]
[404231359,1769979076623,-1161.959,0.00016247,2]
[404231360,1769979076633,-157.1297678,0.00016274,2]
[404231361,1769979076643,-5872.68676583,0.00016313,2]
[404231362,1769979076653,-3956.77728016,0.00016313,2]
[404231363,1769979076661,-1000.0,0.00016374,2]
[404231364,1769979076670,-33275.4141,0.00016374,2]
[404231365,1769979076679,-208.90097972,0.00016438,2]
[404231366,1769979076689,-500.0,0.00016438,2]
[404231367,1769979076699,-500.0,0.00016438,2]
[404231368,1769979076709,-500.0,0.00016438,2]
[404231369,1769979076718,-500.0,0.00016438,2]
[404231370,1769979076727,-500.0,0.00016438,2]
[404231371,1769979076736,-325.7205451,0.00016438,2]
[404231372,1769979076747,-5872.68676583,0.00016512,2]
[404231373,1769979076756,-3956.77728016,0.00016512,2]
[404231374,1769979076765,-157.12976776,0.00016545,2]
[404231375,1769979076775,-248.55026107,0.00016561,2]
[404231376,1769979076784,-500.0,0.00016573,2]
[404231377,1769979076796,-458.39872479,0.00016573,2]
[404231378,1769979076807,-500.0,0.00016573,2]
[404231379,1769979076817,-500.0,0.00016573,2]
[404231380,1769979076827,-500.0,0.00016573,2]
[404231381,1769979076837,-222.92,0.00016698,2]
[404231382,1769979076848,-5872.68676583,0.0001671,2]
[404231383,1769979076857,-3956.77728016,0.0001671,2]
[404231384,1769979076867,-159.0639522,0.00016751,2]
[404231385,1769979076878,-157.12976776,0.00016816,2]
[404231386,1769979076888,-10000.0,0.00016822,2]
[404231387,1769979076898,-150.0,0.00016844,2]
[404231388,1769979076908,-258.53165684,0.00016882,2]
[404231389,1769979076918,-456.08048741,0.00016882,2]
[404231390,1769979076928,-5872.68676583,0.00016908,2]
[404231391,1769979076938,-248.55026107,0.00017008,2]
[404231392,1769979076947,-1680.0,0.00017025,2]
[404231393,1769979076956,-10076.80540011,0.00017031,2]
[404231394,1769979076965,-157.12976776,0.00017087,2]
[404231395,1769979076974,-5872.68676583,0.00017107,2]
[404231396,1769979076983,-250.0,0.00017238,2]
[404231397,1769979076992,-166.64,0.00017268,2]
[404231398,1769979077001,-5872.68676583,0.00017305,2]
[404231399,1769979077011,-200.0,0.00017348,2]
[404231400,1769979077020,-157.12976776,0.00017358,2]
[404231401,1769979077029,-682.26913278,0.00017382,2]
[404231402,1769979077038,-923.1255,0.00017382,2]
[404231403,1769979077048,-248.55026107,0.00017454,2]
[404231404,1769979077057,-222.92,0.00017493,2]
[404231405,1769979077066,-1045.68637885,0.000175,2]
[404231406,1769979077075,-5872.68676583,0.00017503,2]
[404231407,1769979077085,-164.77811604,0.00017505,2]
[404231408,1769979077094,-1079.0,0.00017507,2]
[404231409,1769979077103,-1079.0,0.0001755,2]
[404231410,1769979077114,-1079.0,0.00017584,2]
[404231411,1769979077123,-1898.85844425,0.00017605,2]
[404231412,1769979077133,-157.12976776,0.00017629,2]
[404231413,1769979077142,-228.64737331,0.0001764,2]
[404231414,1769979077151,-3564.67228234,0.0001765,2]
[404231415,1769979077162,-274.38340544,0.00017659,2]
[404231416,1769979077172,-4011.6856472,0.00017668,2]
[404231417,1769979077181,-925.0,0.00017672,2]
[404231418,1769979077190,-5872.68676583,0.00017702,2]
[404231419,1769979077200,-164.77811603,0.00017703,2]
[404231420,1769979077211,-925.0,0.00017733,2]
[404231421,1769979077220,-25000.0,0.00017742,3]
[404231422,1769979077230,-25000.0,0.0001775,3]
[404231423,1769979077239,-25000.0,0.00017759,3]
[404231424,1769979077248,-25000.0,0.00017768,3]
[404231425,1769979077257,-3564.67228234,0.00017775,2]
[404231426,1769979077266,-25000.0,0.00017777,3]
[404231427,1769979077275,-4011.68564718,0.00017784,2]
[404231428,1769979077284,-25000.0,0.00017786,3]
[404231429,1769979077294,-25000.0,0.00017794,3]
[404231430,1769979077303,-25000.0,0.00017803,3]
[404231431,1769979077312,-25000.0,0.00017812,3]
[404231432,1769979077321,-25000.0,0.00017821,3]
[404231433,1769979077330,-25000.0,0.0001783,3]
[404231434,1769979077340,-25000.0,0.00017838,3]
[404231435,1769979077349,-25000.0,0.00017847,3]
[404231436,1769979077358,-25000.0,0.00017856,3]
[404231437,1769979077367,-25000.0,0.00017865,3]
[404231438,1769979077377,-25000.0,0.00017874,3]
[404231439,1769979077386,-25000.0,0.00017882,3]
[404231440,1769979077395,-25000.0,0.00017891,3]
[404231441,1769979077405,-157.12976776,0.000179,2]
[404231442,1769979077414,-25000.0,0.000179,3]
[404231443,1769979077423,-10138.3866,0.000179,2]
[404231444,1769979077433,-15315.80013984,0.000179,3]
[404231445,1769979077442,-164.77811603,0.000179,2]
[404231446,1769979077452,-4011.68564718,0.000179,2]
[404231447,1769979077462,-5872.68676583,0.000179,2]
[404231448,1769979077472,-248.55026107,0.000179,2]
[404231449,1769979077481,-3564.67228234,0.000179,2]
[404231450,1769979077493,-4624.0,0.000179,2]
[404231451,1769979077502,-925.0,0.00017907,2]
[404231452,1769979077511,-3496.695,0.0001791,2]
[404231453,1769979077521,-1410.0,0.0001791,2]
[404231454,1769979077531,-1132.0,0.0001791,2]
[404231455,1769979077541,-1273.033,0.0001791,2]
[404231456,1769979077550,-6577.0,0.0001791,2]
[404231457,1769979077561,-3252.0,0.0001791,2]
[404231458,1769979077571,-2445.0,0.0001791,2]
[404231459,1769979077581,-290.0,0.00017967,2]
[404231460,1769979077592,-48701.3185275,0.00017982,2]
[404231461,1769979077601,-340661.0573187,0.00017982,2]
[404231462,1769979077611,-23759.2913076,0.00017982,2]
[404231463,1769979077620,-69278.5220422,0.00017982,2]
[404231464,1769979077629,-1594.251085,0.00017982,2]
[404231465,1769979077640,-92916.6686533,0.00017982,2]
[404231466,1769979077651,-150.0,0.00017999,2]
[404231467,1769979077661,-150.0,0.00017999,2]
[404231468,1769979077671,-150.0,0.00017999,2]
[404231469,1769979077681,-150.0,0.00017999,2]
[404231470,1769979077693,-150.0,0.00017999,2]
[404231471,1769979077705,-281.69935258,0.00017999,2]
[404231472,1769979077715,-300.0,0.00017999,2]
[404231473,1769979077726,-300.0,0.00017999,2]
[404231474,1769979077735,-497419.59797054,0.00018,2]
[404231475,1769979077758,-431.72858785,0.00018,2]
[404231476,1769979077777,-629.67317731,0.00018,2]
[404231477,1769979077793,-773.19203018,0.00016908,2]
[404231478,1769979077804,-396.71618048,0.00016908,2]
[404231479,1769979077983,-151.0,0.0001593,2]
[404231480,1769979077995,-2786.8690695,0.00016908,2]
[404231481,1769979078006,-7758.45866424,0.00018,2]
[404231482,1769979078067,-5656.81938788,0.00018,2]
[404231483,1769979078081,-724.3169004,0.00018,2]
[404231484,1769979078092,-1546.7,0.00018,2]
[404231485,1769979078141,-2825.25558628,0.00017107,2]
[404231486,1769979078155,-1131.52169388,0.00017107,2]
[404231487,1769979078165,-173.36471704,0.00018,2]
[404231488,1769979078177,-2025.03293898,0.00018,2]
[404231489,1769979086331,-167.0,0.0004,120]
[404231490,1769979086376,-500.0,0.00043287,120]
[404231491,1769979086415,-500.0,0.00043287,120]
[404231492,1769979086454,-500.0,0.00043287,120]
[404231493,1769979086494,-500.0,0.00043287,120]
[404231494,1769979086533,-500.0,0.00043287,120]
[404231495,1769979086574,-150.0,0.00043682,120]
[404231496,1769979086632,-167.0,0.000462,120]
[404231497,1769979086681,-150.0,0.00048051,120]
[404231498,1769979086727,-329.31724529,0.00052248,120]
[404231499,1769979086767,-167.0,0.000523,120]
[404231500,1769979086812,-150.0,0.00052856,120]
[404231501,1769979086861,-151.0,0.00055499,120]
[404231502,1769979086907,-280.03725112,0.00055499,120]
[404231503,1769979086951,-151.0,0.00055499,120]
[404231504,1769979086997,-250.0,0.00055499,120]
[404231505,1769979087040,-500.0,0.00055499,120]
[404231506,1769979087083,-290.39862941,0.00055499,120]
[404231507,1769979087126,-151.0,0.00055499,120]
[404231508,1769979087168,-151.0,0.00055499,120]
[404231509,1769979087209,-250.0,0.00055499,120]
[404231510,1769979087253,-500.0,0.00055499,120]
[404231511,1769979087296,-301.1433787,0.00055499,120]
[404231512,1769979087340,-151.0,0.00055499,120]
[404231513,1769979087383,-151.0,0.00055499,120]
[404231514,1769979087426,-250.0,0.00055499,120]
[404231515,1769979087471,-500.0,0.00055499,120]
[404231516,1769979087518,-500.0,0.00055499,120]
[404231517,1769979087560,-151.0,0.00055499,120]
[404231518,1769979087601,-151.0,0.00055499,120]
[404231519,1769979087646,-250.0,0.00055499,120]
[404231520,1769979087687,-500.0,0.00055499,120]
[404231521,1769979087727,-500.0,0.00055499,120]
[404231522,1769979087768,-250.0,0.00055499,120]
[404231523,1769979087809,-250.0,0.00055499,120]
[404231524,1769979087849,-250.0,0.00055499,120]
[404231525,1769979087891,-250.0,0.00055499,120]
[404231526,1769979087932,-250.0,0.00055499,120]
[404231527,1769979087982,-250.0,0.00055499,120]
[404231528,1769979088023,-250.0,0.00055499,120]
[404231529,1769979088064,-500.0,0.00055499,120]
[404231530,1769979088105,-250.0,0.00055499,120]
[404231531,1769979088145,-250.0,0.00055499,120]
[404231532,1769979088185,-500.0,0.00055499,120]
[404231533,1769979088226,-250.0,0.00055499,120]
[404231534,1769979088265,-250.0,0.00055499,120]
[404231535,1769979088310,-500.0,0.00055499,120]
[404231536,1769979088350,-250.0,0.00055499,120]
[404231537,1769979088390,-250.0,0.00055499,120]
[404231538,1769979088429,-500.0,0.00055499,120]
[404231539,1769979088470,-250.0,0.00055499,120]
[404231540,1769979088513,-250.0,0.00055499,120]
[404231541,1769979088553,-500.0,0.00055499,120]
[404231542,1769979088592,-250.0,0.00055499,120]
[404231543,1769979088715,-500.0,0.00055499,120]
[404231544,1769979088757,-250.0,0.00055499,120]
[404231545,1769979088797,-500.0,0.00055499,120]
[404231546,1769979088836,-250.0,0.00055499,120]
[404231547,1769979088873,-525.06041542,0.00055499,120]
[404231548,1769979088909,-250.0,0.00055499,120]
[404231549,1769979088946,-250.0,0.00055499,120]
[404231550,1769979088981,-250.0,0.00055499,120]
[404231551,1769979089018,-250.0,0.00055499,120]
[404231552,1769979089055,-250.0,0.00055499,120]
[404231553,1769979089092,-250.0,0.00055499,120]
[404231554,1769979089130,-151.0,0.00055499,120]
[404231555,1769979089168,-250.0,0.00055499,120]
[404231556,1769979089207,-250.0,0.00055499,120]
[404231557,1769979089247,-156.587,0.00055499,120]
[404231558,1769979089285,-250.0,0.00055499,120]
[404231559,1769979089325,-250.0,0.00055499,120]
[404231560,1769979089364,-151.0,0.00055499,120]
[404231561,1769979089404,-250.0,0.00055499,120]
[404231562,1769979089444,-162.380719,0.00055499,120]
[404231563,1769979089485,-151.0,0.00055499,120]
[404231564,1769979089526,-168.3888056,0.00055499,120]
[404231565,1769979089567,-250.0,0.00055499,120]
[404231566,1769979089604,-151.0,0.00055499,120]
[404231567,1769979089643,-174.61919141,0.00055499,120]
[404231568,1769979089680,-250.0,0.00055499,120]
[404231569,1769979089719,-151.0,0.00055499,120]
[404231570,1769979089759,-181.08010149,0.00055499,120]
[404231571,1769979089798,-250.0,0.00055499,120]
[404231572,1769979089837,-250.0,0.00055499,120]
[404231573,1769979089875,-151.0,0.00055499,120]
[404231574,1769979089915,-187.78006525,0.00055499,120]
[404231575,1769979089954,-250.0,0.00055499,120]
[404231576,1769979089994,-151.0,0.00055499,120]
[404231577,1769979090035,-194.72792766,0.00055499,120]
[404231578,1769979090074,-250.0,0.00055499,120]
[404231579,1769979090113,-500.0,0.00055499,120]
[404231580,1769979090151,-151.0,0.00055499,120]
[404231581,1769979090190,-201.93286099,0.00055499,120]
[404231582,1769979090228,-250.0,0.00055499,120]
[404231583,1769979090266,-500.0,0.00055499,120]
[404231584,1769979090304,-151.0,0.00055499,120]
[404231585,1769979090341,-250.0,0.00055499,120]
[404231586,1769979090380,-209.40437684,0.00055499,120]
[404231587,1769979090418,-500.0,0.00055499,120]
[404231588,1769979090454,-151.0,0.00055499,120]
[404231589,1769979090494,-217.15233878,0.00055499,120]
[404231590,1769979090532,-500.0,0.00055499,120]
[404231591,1769979090569,-151.0,0.00055499,120]
[404231592,1769979090609,-225.18697532,0.00055499,120]
[404231593,1769979090647,-500.0,0.00055499,120]
[404231594,1769979090684,-151.0,0.00055499,120]
[404231595,1769979090724,-233.51889341,0.00055499,120]
[404231596,1769979090761,-500.0,0.00055499,120]
[404231597,1769979090796,-151.0,0.00055499,120]
[404231598,1769979090833,-242.15909246,0.00055499,120]
[404231599,1769979090868,-500.0,0.00055499,120]
[404231600,1769979090903,-151.0,0.00055499,120]
[404231601,1769979090938,-151.0,0.00055499,120]
[404231602,1769979090977,-500.0,0.00055499,120]
[404231603,1769979091014,-151.0,0.00055499,120]
[404231604,1769979091053,-251.11897888,0.00055499,120]
[404231605,1769979091095,-500.0,0.00055499,120]
[404231606,1769979091133,-151.0,0.00055499,120]
[404231607,1769979091173,-260.4103811,0.00055499,120]
[404231608,1769979091212,-500.0,0.00055499,120]
[404231609,1769979091251,-233.31933614,0.00055499,120]
[404231610,1769979091289,-270.0455652,0.00055499,120]
[404231611,1769979091327,-500.0,0.00055499,120]
[404231612,1769979091362,-500.0,0.00055499,120]
[404231613,1769979091398,-280.03725112,0.00055499,120]
[404231614,1769979091433,-500.0,0.00055499,120]
[404231615,1769979091470,-500.0,0.00055499,120]
[404231616,1769979091510,-290.39862941,0.00055499,120]
[404231617,1769979091548,-500.0,0.00055499,120]
[404231618,1769979091584,-500.0,0.00055499,120]
[404231619,1769979091622,-301.1433787,0.00055499,120]
[404231620,1769979091658,-500.0,0.00055499,120]
[404231621,1769979091693,-500.0,0.00055499,120]
[404231622,1769979091728,-500.0,0.00055499,120]
[404231623,1769979091763,-500.0,0.00055499,120]
[404231624,1769979091797,-250.0,0.00055499,120]
[404231625,1769979091833,-500.0,0.00055499,120]
[404231626,1769979091867,-500.0,0.00055499,120]
[404231627,1769979091902,-250.0,0.00055499,120]
[404231628,1769979091938,-500.0,0.00055499,120]
[404231629,1769979091974,-500.0,0.00055499,120]
[404231630,1769979092105,-250.0,0.00055499,120]
[404231631,1769979092149,-500.0,0.00055499,120]
[404231632,1769979092189,-158.11224406,0.00055499,120]
[404231633,1769979092229,-250.0,0.00055499,120]
[404231634,1769979092269,-500.0,0.00055499,120]
[404231635,1769979092307,-250.0,0.00055499,120]
[404231636,1769979092344,-250.0,0.00055499,120]
[404231637,1769979092381,-500.0,0.00055499,120]
[404231638,1769979092418,-250.0,0.00055499,120]
[404231639,1769979092454,-250.0,0.00055499,120]
[404231640,1769979092492,-500.0,0.00055499,120]
[404231641,1769979092528,-250.0,0.00055499,120]
[404231642,1769979092565,-250.0,0.00055499,120]
[404231643,1769979092603,-500.0,0.00055499,120]
[404231644,1769979092641,-250.0,0.00055499,120]
[404231645,1769979092679,-250.0,0.00055499,120]
[404231646,1769979092716,-500.0,0.00055499,120]
[404231647,1769979092752,-250.0,0.00055499,120]
[404231648,1769979092789,-500.0,0.00055499,120]
[404231649,1769979092825,-250.0,0.00055499,120]
[404231650,1769979092863,-250.0,0.00055499,120]
[404231651,1769979092902,-500.0,0.00055499,120]
[404231652,1769979092939,-250.0,0.00055499,120]
[404231653,1769979092977,-250.0,0.00055499,120]
[404231654,1769979093015,-250.0,0.00055499,120]
[404231655,1769979093054,-500.0,0.00055499,120]
[404231656,1769979093095,-500.0,0.00055499,120]
[404231657,1769979093138,-250.0,0.00055499,120]
[404231658,1769979093179,-250.0,0.00055499,120]
[404231659,1769979093221,-250.0,0.00055499,120]
[404231660,1769979093261,-500.0,0.00055499,120]
[404231661,1769979093299,-250.0,0.00055499,120]
[404231662,1769979093335,-250.0,0.00055499,120]
[404231663,1769979093371,-500.0,0.00055499,120]
[404231664,1769979093405,-250.0,0.00055499,120]
[404231665,1769979093443,-250.0,0.00055499,120]
[404231666,1769979093482,-500.0,0.00055499,120]
[404231667,1769979093519,-250.0,0.00055499,120]
[404231668,1769979093563,-250.0,0.00055499,120]
[404231669,1769979093607,-500.0,0.00055499,120]
[404231670,1769979093649,-250.0,0.00055499,120]
[404231671,1769979093689,-250.0,0.00055499,120]
[404231672,1769979093731,-250.0,0.00055499,120]
[404231673,1769979093769,-250.0,0.00055499,120]
[404231674,1769979093806,-250.0,0.00055499,120]
[404231675,1769979093841,-250.0,0.00055499,120]
[404231676,1769979093877,-250.0,0.00055499,120]
[404231677,1769979093913,-250.0,0.00055499,120]
[404231678,1769979093952,-250.0,0.00055499,120]
[404231679,1769979093989,-250.0,0.00055499,120]
[404231680,1769979094025,-250.0,0.00055499,120]
[404231681,1769979094061,-250.0,0.00055499,120]
[404231682,1769979094098,-250.0,0.00055499,120]
[404231683,1769979094136,-500.0,0.00055499,120]
[404231684,1769979094176,-500.0,0.00055499,120]